Cogmind - Beta 13 @@@ ROGUE MODE // 2024.03.06 @ 20:57:07 Player: Nix Result: Destroyed by S-10 Pest with Light Assault Rifle Performance ------------- Evolutions (0) 0 Regions Visited (1) 200 Robots Destroyed (12) 60 Value Destroyed (247) 247 Prototype IDs (0) 0 Alien Tech Used (0) 0 Bonus (0) 0 TOTAL SCORE: 507 Bonus ------- None Cogmind --------- Core Integrity 0/250 Matter 244/300 Energy 113/125 System Corruption 0% Temperature Cool (0) Movement Core (100) Ox1 Location -10/Materials Parts ------- > --- POWER (1) -------- Light Ion Engine > --- PROPULSION (2) --- (None) > --- UTILITY (2) ------ (None) > --- WEAPON (2) ------- Light Assault Rifle > --- INVENTORY (5) ---- Aluminum Leg Peak State ------------ > --- POWER ------------ Ion Engine > --- PROPULSION ------- Wheel Compact Wheel > --- UTILITY ---------- (None) > --- WEAPON ----------- EM Pulse Gun Light Assault Rifle > --- INVENTORY -------- Light Ion Engine Aluminum Leg Aluminum Leg Light Assault Rifle [Rating: 5] Favorites ----------- Power Ion Engine Engine Ion Engine Propulsion Wheel Leg Aluminum Leg Wheel Wheel Utility None Weapon Light Assault Rifle Energy Gun EM Pulse Gun Ballistic Gun Light Assault Rifle Build | -11 -10 ------- Run | Yrd Mat Slots Evolved . | . . Power . | . . Propulsion . | . . Utility . | . . Weapon . | . . Parts Attached 9 | 6 3 Power 2 | 1 1 Engine 2 | 1 1 Core . | . . Reactor . | . . Propulsion 4 | 3 1 Treads . | . . Leg 2 | 1 1 Wheel 2 | 2 . Hover . | . . Flight . | . . Utility . | . . Device . | . . Storage . | . . Processor . | . . Hackware . | . . Protection . | . . Artifact . | . . Weapon 3 | 2 1 Energy Gun 1 | 1 . Energy Cannon . | . . Ballistic Gun 2 | 1 1 Ballistic Cannon . | . . Launcher . | . . Special Weapon . | . . Impact Weapon . | . . Slashing Weapon . | . . Piercing Weapon . | . . Special Melee Weapon . | . . Unidentified Prototypes . | . . Parts Lost 6 | . 6 Power 1 | . 1 Propulsion 3 | . 3 Utility . | . . Weapon 2 | . 2 Highest Loss Streak 3 | . 3 To Critical Strikes . | . . Average Slot Usage (%) 64 | . 64 Engine 14 | . 14 Leg 5 | . 5 Wheel 17 | . 17 Energy Gun 7 | . 7 Ballistic Gun 19 | . 19 Naked Turns . | . . Heaviest Build 8 | 8 8 Greatest Support 26 | 26 26 Greatest Overweight (x) 2 | . 2 Average Overweight (x) . | . . Largest Inventory Capacity 5 | 5 5 Average Capacity 5 | 5 5 Most Carried 5 | 5 4 Average Carried 3 | 3 3 Final Capacity 5 | 5 5 Final Carried 4 | 4 1 Class Distribution -------------------- 100% | Mutant Dominant Class ---------------- Mutant | -10/Materials Resources | -11 -10 ----------- Run | Yrd Mat Matter Collected 261 | 180 81 Remotely . | . . Salvage Created 426 | . 426 Parts 24 | . 24 Haulers Intercepted 1 | . 1 Recyclers Shooed . | . . Parts Field Recycled . | . . Retrieved Matter . | . . Parts Self-Destructed . | . . Prevented . | . . Kills | -11 -10 ------- Run | Yrd Mat Combat Hostiles Destroyed 5 | . 5 Guns 5 | . 5 Classes Destroyed 6 | . 6 Builder 1 | . 1 Hauler 1 | . 1 Recycler 2 | . 2 Operator 1 | . 1 Watcher 2 | . 2 Grunt 5 | . 5 Best Kill Streak 6 | . 6 Combat Bots Only 4 | . 4 Max Kills in Single Turn 3 | . 3 Gunslinging . | . . Exploded . | . . Melee . | . . Uniques/NPCs Destroyed . | . . Combat | -11 -10 -------- Run | Yrd Mat Hostile Shots Fired 78 | . 78 Missed 15 | . 15 Damage Taken 700 | . 700 Core 258 | . 258 Absorbed by Shields . | . . Core Remaining (%) 100 | 100 . Volleys Fired 32 | . 32 Largest 2 | . 2 Hottest 60 | . 60 Shots Fired 63 | . 63 Gun 63 | . 63 Cannon . | . . Launcher . | . . Special . | . . Kinetic 57 | . 57 Thermal . | . . Explosive . | . . Electromagnetic 6 | . 6 Robot Hit Streak 9 | . 9 Robot Miss Streak 3 | . 3 Penetration Max . | . . Secondary Targets 2 | . 2 Max Gunslinging Chain 1 | . 1 Shots Hit Robots 42 | . 42 Core Hits 21 | . 21 Critical Kills . | . . Critical Parts Destroyed . | . . Critical Strikes . | . . Melee Attacks . | . . Impact . | . . Slashing . | . . Piercing . | . . Sneak Attacks . | . . Combat Hostiles . | . . Follow-up Attacks . | . . Damage Inflicted 645 | . 645 Guns 366 | . 366 Cannons . | . . Explosions 279 | . 279 Melee . | . . Ramming . | . . Kinetic 305 | . 305 Thermal . | . . Explosive 279 | . 279 Electromagnetic 61 | . 61 Impact . | . . Slashing . | . . Piercing . | . . Highest Corruption . | . . Average Corruption . | . . Corruption Purged . | . . Corruption Blocked . | . . Overload Shots . | . . Overflow Damage 38 | . 38 Projectiles . | . . Explosions 38 | . 38 Melee . | . . Knockbacks . | . . Impact . | . . Kinetic . | . . Secondary . | . . Self-Inflicted Damage 82 | . 82 Shots 1 | . 1 Rammed . | . . Targets Rammed . | . . Kicked . | . . Crushed . | . . Highest Temperature 44 | . 44 Average Temperature 16 | . 16 Received Heat Transfer 240 | . 240 Siege Activations . | . . Robots Corrupted . | . . Combat Hostiles . | . . Parts Fried 2 | . 2 Impact Corruptions . | . . Robots Melted . | . . Combat Hostiles . | . . Parts Melted . | . . Heat Transferred . | . . Parts Sabotaged . | . . Parts Stolen . | . . Parts Stripped . | . . Power Chain Reactions . | . . Alert | -11 -10 ------- Run | Yrd Mat Peak Influence 178 | . 178 Initial . | . . Average 37 | . 46 Maximum Alert Level . | . . Low Security (%) 100 | 100 100 Level 1 . | . . Level 2 . | . . Level 3 . | . . Level 4 . | . . Level 5 . | . . High Security . | . . Max Security . | . . Squads Dispatched 2 | . 2 Investigation 1 | . 1 Extermination . | . . Reinforcement 1 | . 1 Assault . | . . Garrison . | . . Intercept . | . . Searches Triggered . | . . Construction Impeded . | . . Haulers Reinforced . | . . Active Scanning Responses . | . . Cargo Convoy Interrupts . | . . Stealth | -11 -10 --------- Run | Yrd Mat Distress Signals . | . . Communications Jammed . | . . Distress Signals . | . . Times Spotted 11 | . 11 Peak Tracking Total 6 | . 6 Tactical Retreats . | . . Traps | -11 -10 ------- Run | Yrd Mat Traps Triggered 1 | . 1 Indirectly . | . . Trap Hack Attempts . | . . Triggered . | . . Disarmed . | . . Reprogrammed . | . . Reused . | . . Traps Extracted . | . . Installed . | . . Triggered . | . . Machines | -11 -10 ---------- Run | Yrd Mat Machines Disabled 1 | . 1 Max in Single Turn 1 | . 1 Machines Repaired . | . . Machines Dismantled . | . . Machines Sabotaged . | . . Overloaded Fab Kills . | . . Hacking | -11 -10 --------- Run | Yrd Mat Machines Accessed . | . . Terminals . | . . Fabricators . | . . Repair Stations . | . . Recycling Units . | . . Scanalyzers . | . . Garrison Access . | . . Total Hacks . | . . Successful . | . . Failed . | . . Catastrophic . | . . Database Lockouts . | . . Manual . | . . Terminals . | . . Fabricators . | . . Repair Stations . | . . Recycling Units . | . . Scanalyzers . | . . Garrison Access . | . . Terminal Hacks . | . . Fabricator Hacks . | . . Repair Station Hacks . | . . Recycling Unit Hacks . | . . Scanalyzer . | . . Garrison Access Hacks . | . . Unauthorized Hacks . | . . Terminals . | . . Fabricators . | . . Repair Stations . | . . Recycling Units . | . . Scanalyzers . | . . Garrison Access . | . . Data Cores Recovered . | . . Used . | . . Hacking Detections . | . . Full Trace Events . | . . Feedback Events . | . . Feedback Blocked . | . . Robot Schematics Acquired . | . . Robots Built . | . . Authchips . | . . Time . | . . Total Robot Build Rating . | . . Part Schematics Acquired . | . . Parts Built . | . . Authchips . | . . Time . | . . Total Part Build Rating . | . . Parts Repaired . | . . Time . | . . Parts Recycled . | . . Recycled Matter . | . . Retrieved Matter . | . . Retrieved Components . | . . Parts Scanalyzed . | . . Part Schematics Acquired . | . . Parts Damaged . | . . Bothacking | -11 -10 ------------ Run | Yrd Mat Used RIF Installer . | . . Robots Hacked . | . . Non-combat . | . . Combat . | . . Robot Hacks Applied . | . . Relay Couplers Released . | . . Fabnet Peak Effective % . | . . Robots Rewired . | . . Allies Hacked . | . . Hacks Repelled . | . . Allies | -11 -10 -------- Run | Yrd Mat Total Allies . | . . Largest Group . | . . Highest-Rated Group . | . . Highest-Rated Ally . | . . Total Orders . | . . Ally Attacks . | . . Total Damage . | . . Kills . | . . Allies Corrupted . | . . Allies Melted . | . . Intel | -11 -10 ------- Run | Yrd Mat Robot Analysis Total . | . . Derelict Logs Recovered . | . . Drone Launches . | . . Drone Recoveries . | . . Exploration | -11 -10 ------------- Run | Yrd Mat Turns Passed 222 | 44 178 Spaces Moved 113 | 44 69 Core 24 | 21 3 Treads . | . . Legs . | . . Wheels 89 | 23 66 Hover . | . . Flight . | . . Fastest Speed 50 | 50 80 Average Speed 83 | 70 91 Slowest Speed 150 | 90 150 Overloaded Moves . | . . Propulsion Burnouts . | . . Robots Hopped . | . . Cave-ins Triggered . | . . Exploration Rate (%) 12 | 4 20 Regions Visited 1 Branch Regions . Pre-discovered Areas . | . . Known Exits Taken . | . . Unknown Exits Taken 1 | 1 . Scrap Searched . | . . Spaces Dug . | . . Terrain Destroyed 19 | . 19 Melee . | . . Projectile . | . . AOE 19 | . 19 Terrain Rammed . | . . Walls Destroyed . | . . Machines Disabled . | . . Actions | -11 -10 --------- Run | Yrd Mat Total 186 | 54 132 Wait 28 | . 28 Move 112 | 43 69 Hop . | . . Pick Up 5 | 5 . Fast Attach 4 | 4 . Attach 4 | 1 3 Detach . | . . Swap 1 | 1 . Drop . | . . Fire 32 | . 32 Melee . | . . Ram . | . . Kick . | . . Crush . | . . Escape Stasis . | . . Rewire . | . . Trap . | . . Miscellaneous . | . . Route ------- -11/Scrapyard -10/Materials History --------- Turn | Location | Event 2 | -11/Scrapyard | Met Revision 17 16 | -11/Scrapyard | Discovered new exit (range 16) 45 | -11/Scrapyard | Entered Materials 188 | -10/Materials | Core integrity fell below 50% 196 | -10/Materials | Lost 3 parts (2n1w) 217 | -10/Materials | Core integrity fell below 20% 223 | -10/Materials | Destroyed by S-10 Pest with Light Assault Rifle Last Messages --------------- 00205_ U-05 Engineer lays Concrete. 00205_ R-06 Scavenger collects Terrain Scan Processor. 00207_ U-05 Engineer lays Concrete. 00209_ A-02 Transporter destroyed. 00209_ Switching to secondary target: S-10 Pest. 00209_ U-05 Engineer builds a Wall. 00210_ R-06 Scavenger collects Welding Torch. 00211_ Ion Engine destroyed. 00213_ Aluminum Leg destroyed. 00213_ K-01 Serf collects debris. 00213_ R-06 Scavenger collects Wheel. 00214_ U-05 Engineer builds a Wall. 00216_ U-05 Engineer lays Concrete. 00217_ K-01 Serf collects debris. 00217_ Lgt. Assault Rifle destroyed. 00218_ U-05 Engineer builds a Wall. 00220_ K-01 Serf collects debris. 00220_ U-05 Engineer builds a Wall. 00221_ U-05 Engineer lays Concrete. Map ----- +----------------------------------------------------+ | ???????????????????????????????????????????? | | ???????????????????????????????????????????? | | ???????????????????????????????????????????? | | ???????????????????????????????????????????? | | ???????????????????????????????????????????? | | ???????????????????????????????????????????? | | ???????????????????????????????????????????? | | ???????????????????????????????????????????? | | ???????????????????????????????????????????? | | ???????????????????????????????????????????? | | ???????????????????????????????????????????? | | ??????????????????????? ???????????????????? | | ??????????????????????? ???????????????????? | | ??????????????????????? ???????????????????? | | ??????????????????????? ???????????????????? | | ??????????????????????? ??????????????????? | | ??????????????????????? ??????????????????? | | ???????????????????????=/??????????????????? | | ???????????????????????#!#?????????????????? | | ????????????????#??????#!??????????????????? | | ????????????????# ?????#%#?????????????????? | | ????????????????#+######+##????????????????? | | ???????????????# =!!!#????????????????? | | #######???????## """!#????????????????? | | ? #???????# "Y" #????????????????? | | ?# #???????# "%"@#????????????????? | | ?# ???????## !r= #????????????????? | | ?# ???????# !% #????????????????? | | ?# ???????# == #????????????????? | | #?# #???????# = k s#?? #????????????? | | # ################ # #????????????? | | # % u s # "?????????? | | + s + ????????? | | ??# #????????????? | | ??# ##################T# ###????????????? | | ??# # ???????###k #??????????????? | | ??# # """ """ #????????? #??????????????? | | ??# # """ "T" #????????? #??????????????? | | ??# # """ #????????? #??????????????? | | ??# + #????????? #??????????????? | | ??# # #????????? #??????????????? | | ??# # #????????? #??????????????? | | ??# # #??????????????????????????? | | ??# ###########??????????????????????????? | | ??# #######??????????????????????????????? | | ??# # #??????????????????????????????? | | ??# #???????????????????????????????? | | ??# # #???????????????????????????????? | | ??# ##########???????????????????????????? | | ### # #???????????????????????????? | +----------------------------------------------------+ Best States ------------- Heat Dissipation 25 Energy Generation 10 Energy Capacity 250 Matter Stores 266 Matter Capacity 300 Sight Range 16 Terrain Scan Density 10 Evasion (%) 50 Item Schematics ----------------- None Robot Schematics ------------------ None Fabricated ------------ Nothing Alien Tech Used ----------------- None Achievements -------------- None Challenges ------------ None Game ------ Seed SkeletonTrapCoupler Manual? 0 Play Time 00:07:00 Cumulative 161.4 hours Start 2024.03.06 @ 20:52:45 End 2024.03.06 @ 20:57:07 Sessions 1 Manual Loads 0 Difficulty Rogue Special Mode None Game No. 41 Rogue 41 Adventurer 0 Explorer 0 Win Type - Total 0 Types 0/0/0/0/0/0/0/0/0 Lore% 18 Gallery% 30 Achievement% 17 Wizard Run 0 Options --------- Layout 1 ASCII 0 Keyboard 0 Movement Mouse Keybinds 0 Fullscreen 1 Font 32/SmallcapsGlow Map View 50x35 Zoom Use 0% Tactical HUD 1 Map Filters NONE Filters NONE Steam 1 RUN: 936979af-bcf7-4f7c-9758-981d677014c7